Workbook

Sheet Template
B8: Acct Number | C8: Description | D8: General Ledger Account Balance | E8: (Direct Costs) | F8: (Disallowed Costs) | H8: Proposed Company Wide | I8: % of Direct Labor | K8: Proposed Home Office | L8: Home Office Allocation % | M8: Proposed Field Office | N8: Field Allocation%
B9: 5000 | C9: DIRECT LABOR | H9: =+D9+E9+F9 -> 0 | I9: =ROUND(H9/H9,4) ->  | L9: =IF(H9=0,"",ROUND(K9/$H9,4)) ->  | N9: =IF(H9=0,"",ROUND(M9/$H9,4)) -> 
B11: INDIRECT COSTS:
B12: FRINGE BENEFITS
B13: 6000 | C13: Benefits: Bonuses | D13: 0 | E13: 0 | F13: 0 | H13: =+D13+E13+F13 -> 0 | I13: =ROUND(H13/$H$9,4) ->  | K13: 0 | L13: =IF(H13=0,"",ROUND(K13/$H13,4)) ->  | M13: 0 | N13: =IF(H13=0,"",ROUND(M13/$H13,4)) -> 
B14: 6100 | C14: Benefits: 401(k)/ Retirement plans | D14: 0 | E14: 0 | F14: 0 | H14: =+D14+E14+F14 -> 0 | I14: =ROUND(H14/$H$9,4) ->  | K14: 0 | M14: 0
B15: 6200 | C15: Benefits: PTO (vac., sick, holiday) | D15: 0 | E15: 0 | F15: 0 | H15: 0 | K15: 0 | M15: 0
B16: 6300 | C16: Insurance | D16: 0 | E16: 0 | F16: 0 | H16: 0 | K16: 0 | M16: 0
B17: 6310 | C17: Insurance: Disability | D17: 0 | E17: 0 | F17: 0 | H17: 0 | K17: 0 | M17: 0
B18: 6320 | C18: Insurance: Life | D18: 0 | E18: 0 | F18: 0 | H18: 0 | K18: 0 | M18: 0
B19: 6330 | C19: Insurance: Medical | D19: 0 | E19: 0 | F19: 0 | H19: 0 | K19: 0 | M19: 0
B20: 6340 | C20: Insurance: Workers' Comp | D20: 0 | E20: 0 | F20: 0 | H20: 0 | K20: 0 | M20: 0
B21: 6390 | C21: Insurance: Key Employee Life | D21: 0 | E21: 0 | F21: 0 | H21: =+D21+E21+F21 -> 0 | I21: =ROUND(H21/$H$9,4) ->  | K21: 0 | M21: 0
B22: 6300 | C22: Subtotal Insurance | D22: =SUBTOTAL(9,D16:D21) -> 0 | E22: =SUBTOTAL(9,E16:E21) -> 0 | F22: =SUBTOTAL(9,F16:F21) -> 0 | H22: =SUBTOTAL(9,H16:H21) -> 0 | K22: 0 | M22: 0
B23: 6400 | C23: Payroll Taxes | D23: 0 | E23: 0 | F23: 0 | H23: 0 | K23: 0 | M23: 0
B24: 6410 | C24: Payroll Taxes: FICA and Med | D24: 0 | E24: 0 | F24: 0 | H24: =+D24+E24+F24 -> 0 | K24: 0 | M24: 0
B25: 6420 | C25: Payroll Taxes: FUTA and SUTA | D25: 0 | E25: 0 | F25: 0 | H25: =+D25+E25+F25 -> 0 | K25: 0 | M25: 0
B26: 6400 | C26: Subtotal Payroll Taxes | D26: =SUBTOTAL(9,D23:D25) -> 0 | E26: =SUBTOTAL(9,E23:E25) -> 0 | F26: =SUBTOTAL(9,F23:F25) -> 0 | H26: =SUBTOTAL(9,H23:H25) -> 0 | I26: =SUBTOTAL(9,I23:I25) ->  | K26: =SUBTOTAL(9,K23:K25) -> 0 | M26: =SUBTOTAL(9,M23:M25) -> 0
B27: 6500 | C27: Misc. Fringe Benefits | D27: 0 | E27: 0 | F27: 0 | H27: 0 | K27: 0 | M27: 0
B28: xxxx
B29: TOTAL FRINGE BENEFITS | D29: =SUBTOTAL(9,D13:D28) -> 0 | E29: =SUBTOTAL(9,E13:E28) -> 0 | F29: =SUBTOTAL(9,F13:F28) -> 0 | H29: =SUBTOTAL(9,H13:H28) -> 0 | I29: =SUBTOTAL(9,I13:I28) ->  | K29: =SUBTOTAL(9,K13:K28) -> 0 | M29: =SUBTOTAL(9,M13:M28) -> 0
B31: GENERAL OVERHEAD
B32: 7000 | C32: Indirect Labor | D32: 0 | E32: 0 | F32: 0 | H32: =+D32+E32+F32 -> 0 | I32: =ROUND(H32/$H$9,4) ->  | K32: 0 | L32: =IF(H32=0,"",ROUND(K32/$H32,4)) ->  | M32: 0 | N32: =IF(H32=0,"",ROUND(M32/$H32,4)) -> 
B33: 7010 | C33: Indirect Labor | D33: 0 | E33: 0 | F33: 0 | H33: 0 | K33: 0 | M33: 0
B34: 7090 | C34: Indirect Labor -Unallowable (Eg. Marketing) | D34: 0 | E34: 0 | F34: 0 | H34: 0 | K34: 0 | M34: 0
B35: 7000 | C35: Subtotal Indirect Labor | D35: =SUBTOTAL(9,D32:D34) -> 0 | E35: =SUBTOTAL(9,E32:E34) -> 0 | F35: =SUBTOTAL(9,F32:F34) -> 0 | H35: =SUBTOTAL(9,H32:H34) -> 0 | K35: =SUBTOTAL(9,K32:K34) -> 0 | M35: =SUBTOTAL(9,M32:M34) -> 0
B36: 5190 | C36: Direct Costs | D36: 0 | E36: 0 | F36: 0 | H36: =+D36+E36+F36 -> 0 | K36: 0 | M36: 0
B37: 5191 | C37: Direct: Lodging, Meals, and Travel | D37: 0 | E37: 0 | F37: 0 | H37: 0 | K37: 0 | M37: 0
B38: 5192 | C38: Direct: Employee Mileage Reimbursements | D38: 0 | E38: 0 | F38: 0 | H38: 0 | K38: 0 | M38: 0
B39: 5193 | C39: Direct: Rentals and Supplies | D39: 0 | E39: 0 | F39: 0 | H39: 0 | K39: 0 | M39: 0
B40: 5194 | C40: Direct: Subconsultants | D40: 0 | E40: 0 | F40: 0 | H40: 0 | K40: 0 | M40: 0
B41: 5190 | C41: Subtotal Direct Costs | D41: =SUBTOTAL(9,D36:D40) -> 0 | E41: =SUBTOTAL(9,E36:E40) -> 0 | F41: =SUBTOTAL(9,F36:F40) -> 0 | H41: =SUBTOTAL(9,H36:H40) -> 0 | I41: =SUBTOTAL(9,I36:I40) ->  | K41: =SUBTOTAL(9,K36:K40) -> 0 | M41: =SUBTOTAL(9,M36:M40) -> 0
B42: 7100 | C42: Advertising | D42: 0 | E42: 0 | F42: 0 | H42: =+D42+E42+F42 -> 0 | K42: 0 | M42: 0
B43: 7110 | C43: Advertising and Marketing: Direct | D43: 0 | E43: 0 | F43: 0 | H43: 0 | K43: 0 | M43: 0
B44: 7120 | C44: Advertising: Help Wanted | D44: 0 | E44: 0 | F44: 0 | H44: 0 | K44: 0 | M44: 0
B45: 7190 | C45: Advertising and Marketing: General | D45: 0 | E45: 0 | F45: 0 | H45: =+D45+E45+F45 -> 0 | I45: =ROUND(H45/$H$9,4) ->  | K45: 0 | M45: 0
B46: 7100 | C46: Subtotal Advertising | D46: =SUBTOTAL(9,D42:D45) -> 0 | E46: =SUBTOTAL(9,E42:E45) -> 0 | F46: 0 | H46: =SUBTOTAL(9,H42:H45) -> 0 | K46: =SUBTOTAL(9,K42:K45) -> 0 | M46: =SUBTOTAL(9,M42:M45) -> 0
B47: 7200 | C47: Automobile Expense | D47: 0 | E47: 0 | F47: 0 | H47: =+D47+E47+F47 -> 0 | K47: 0 | M47: 0
B48: 7210 | C48: Automobile Expense | D48: 0 | E48: 0 | F48: 0 | H48: 0 | K48: 0 | M48: 0
B49: 7290 | C49: Personal Use of Company Vehicle | D49: 0 | E49: 0 | F49: 0 | H49: 0 | K49: 0 | M49: 0
B50: 7200 | C50: Subtotal Automobile Expense | D50: =SUBTOTAL(9,D47:D49) -> 0 | E50: =SUBTOTAL(9,E47:E49) -> 0 | F50: =SUBTOTAL(9,F47:F49) -> 0 | H50: =SUBTOTAL(9,H47:H49) -> 0 | I50: =SUBTOTAL(9,I47:I49) ->  | K50: =SUBTOTAL(9,K47:K49) -> 0 | M50: =SUBTOTAL(9,M47:M49) -> 0
B51: 7300 | C51: Bank Service Charge | D51: 0 | E51: 0 | F51: 0 | H51: 0 | K51: 0 | M51: 0
B52: 7490 | C52: Contributions and Gifts | D52: 0 | E52: 0 | F52: 0 | H52: 0 | K52: 0 | M52: 0
B53: 7500 | C53: Depreciation & Amortization | D53: 0 | E53: 0 | F53: 0 | H53: 0 | K53: 0 | M53: 0
B54: 7510 | C54: Depreciation Expense - Building | D54: 0 | E54: 0 | F54: 0 | H54: 0 | K54: 0 | M54: 0
B55: 7520 | C55: Depreciation Expense - Machinery & Equipment | D55: 0 | E55: 0 | F55: 0 | H55: 0 | K55: 0 | M55: 0
B56: 7590 | C56: Goodwill Amortization | D56: 0 | E56: 0 | F56: 0 | H56: 0 | K56: 0 | M56: 0
B57: 7500 | C57: Subtotal Depreciation & Amortization | D57: =SUBTOTAL(9,D53:D56) -> 0 | E57: =SUBTOTAL(9,E53:E56) -> 0 | F57: =SUBTOTAL(9,F53:F56) -> 0 | H57: =SUBTOTAL(9,H53:H56) -> 0 | K57: =SUBTOTAL(9,K53:K56) -> 0 | M57: =SUBTOTAL(9,M53:M56) -> 0
B58: 7600 | C58: Dues and Subscriptions | D58: 0 | E58: 0 | F58: 0 | H58: 0 | K58: 0 | M58: 0
B59: 7700 | C59: Insurance | D59: 0 | E59: 0 | F59: 0 | H59: 0 | K59: 0 | M59: 0
B60: 7710 | C60: Insurance: Automotive | D60: 0 | E60: 0 | F60: 0 | H60: 0 | K60: 0 | M60: 0
B61: 7720 | C61: Insurance: Business Liability | D61: 0 | E61: 0 | F61: 0 | H61: 0 | K61: 0 | M61: 0
B62: 7730 | C62: Insurance: Property | D62: 0 | E62: 0 | F62: 0 | H62: 0 | K62: 0 | M62: 0
B63: 7700 | C63: Subtotal Insurance | D63: =SUBTOTAL(9,D59:D62) -> 0 | E63: =SUBTOTAL(9,E59:E62) -> 0 | F63: =SUBTOTAL(9,F59:F62) -> 0 | H63: =SUBTOTAL(9,H59:H62) -> 0 | I63: =SUBTOTAL(9,I59:I62) ->  | K63: =SUBTOTAL(9,K59:K62) -> 0 | M63: =SUBTOTAL(9,M59:M62) -> 0
B64: 7890 | C64: Interest Expense | D64: 0 | E64: 0 | F64: 0 | H64: 0 | K64: 0 | M64: 0
B65: 7900 | C65: Licenses and Permits | D65: 0 | E65: 0 | F65: 0 | H65: 0 | K65: 0 | M65: 0
B66: 8000 | C66: Maintenance and Repairs | D66: 0 | E66: 0 | F66: 0 | H66: 0 | K66: 0 | M66: 0
B67: 8100 | C67: Travel & Meals | D67: 0 | E67: 0 | F67: 0 | H67: 0 | K67: 0 | M67: 0
B68: 8110 | C68: Travel & Meals (Allowable) | D68: 0 | E68: 0 | F68: 0 | H68: =+D68+E68+F68 -> 0 | I68: =ROUND(H68/$H$9,4) ->  | K68: 0 | M68: 0
B69: 8190 | C69: Travel & Meals (Unallowable) | D69: 0 | E69: 0 | F69: 0 | H69: =+D69+E69+F69 -> 0 | I69: =ROUND(H69/$H$9,4) ->  | K69: 0 | M69: 0
B70: 8100 | C70: Subtotal Travel & Meals | D70: =SUBTOTAL(9,D67:D69) -> 0 | E70: =SUBTOTAL(9,E67:E69) -> 0 | F70: =SUBTOTAL(9,F67:F69) -> 0 | H70: =SUBTOTAL(9,H67:H69) -> 0 | K70: =SUBTOTAL(9,K67:K69) -> 0 | M70: =SUBTOTAL(9,M67:M69) -> 0
B71: 8290 | C71: Entertainment | D71: 0 | E71: 0 | F71: 0 | H71: =+D71+E71+F71 -> 0 | I71: =ROUND(H71/$H$9,4) ->  | K71: 0 | M71: 0
B72: 8390 | C72: Misc. Fees, Fines, Penalties | D72: 0 | E72: 0 | F72: 0 | H72: 0 | K72: 0 | M72: 0
B73: 8400 | C73: Office Expense | D73: 0 | E73: 0 | F73: 0 | H73: 0 | K73: 0 | M73: 0
B74: 8410 | C74: Office Expense: Cleaning | D74: 0 | E74: 0 | F74: 0 | H74: 0 | K74: 0 | M74: 0
B75: 8420 | C75: Office Expense: Postage and Delivery | D75: 0 | E75: 0 | F75: 0 | H75: 0 | K75: 0 | M75: 0
B76: 8430 | C76: Office Expense: Office Supplies | D76: 0 | E76: 0 | F76: 0 | H76: 0 | K76: 0 | M76: 0
B77: 8440 | C77: Office Expense: Computer Expense | D77: 0 | E77: 0 | F77: 0 | H77: 0 | K77: 0 | M77: 0
B78: 8450 | C78: Office Expense: Printing & Reproduction | D78: 0 | E78: 0 | F78: 0 | H78: 0 | K78: 0 | M78: 0
B79: 8460 | C79: Office Expense: Other Office Expense | D79: 0 | E79: 0 | F79: 0 | H79: 0 | K79: 0 | M79: 0
B80: 8400 | C80: Subtotal Office Expense | D80: =SUBTOTAL(9,D73:D79) -> 0 | E80: =SUBTOTAL(9,E73:E79) -> 0 | F80: =SUBTOTAL(9,F73:F79) -> 0 | H80: =SUBTOTAL(9,H73:H79) -> 0 | I80: =SUBTOTAL(9,I73:I79) ->  | K80: =SUBTOTAL(9,K73:K79) -> 0 | M80: =SUBTOTAL(9,M73:M79) -> 0
B81: 8500 | C81: Professional Fees | D81: 0 | E81: 0 | F81: 0 | H81: =+D81+E81+F81 -> 0 | K81: 0 | M81: 0
B82: 8510 | C82: Prof Fees: Legal | D82: 0 | E82: 0 | F82: 0 | H82: 0 | K82: 0 | M82: 0
B83: 8520 | C83: Prof Fees: Accounting (Excluding NJDOT Audit) | D83: 0 | E83: 0 | F83: 0 | H83: 0 | K83: 0 | M83: 0
B84: 8530 | C84: Prof Fees: Accounting (NJDOT Audit) | D84: 0 | E84: 0 | F84: 0 | H84: 0 | K84: 0 | M84: 0
B85: 8540 | C85: Professional Fees- Other | D85: 0 | E85: 0 | F85: 0 | H85: 0 | K85: 0 | M85: 0
B86: 8500 | C86: Subtotal Professional Fees | D86: =SUBTOTAL(9,D81:D85) -> 0 | E86: =SUBTOTAL(9,E81:E85) -> 0 | F86: =SUBTOTAL(9,F81:F85) -> 0 | H86: =SUBTOTAL(9,H81:H85) -> 0 | I86: =SUBTOTAL(9,I81:I85) ->  | K86: =SUBTOTAL(9,K81:K85) -> 0 | M86: =SUBTOTAL(9,M81:M85) -> 0
B87: 8600 | C87: Recruiting | D87: 0 | E87: 0 | F87: 0 | H87: 0 | K87: 0 | M87: 0
B88: 8700 | C88: Rent | D88: 0 | E88: 0 | F88: 0 | H88: 0 | K88: 0 | M88: 0
B89: 8710 | C89: Rent-Equipment | D89: 0 | E89: 0 | F89: 0 | H89: 0 | K89: 0 | M89: 0
B90: 8720 | C90: Rent-Office | D90: 0 | E90: 0 | F90: 0 | H90: 0 | K90: 0 | M90: 0
B91: 8730 | C91: Rent-Other | D91: 0 | E91: 0 | F91: 0 | H91: 0 | K91: 0 | M91: 0
B92: 8700 | C92: Subtotal Rent | D92: =SUBTOTAL(9,D88:D91) -> 0 | E92: =SUBTOTAL(9,E88:E91) -> 0 | F92: =SUBTOTAL(9,F88:F91) -> 0 | H92: =SUBTOTAL(9,H88:H91) -> 0 | I92: =SUBTOTAL(9,I88:I91) ->  | K92: =SUBTOTAL(9,K88:K91) -> 0 | M92: =SUBTOTAL(9,M88:M91) -> 0
B93: 8800 | C93: Telephone | D93: 0 | E93: 0 | F93: 0 | H93: 0 | K93: 0 | M93: 0
B94: 8900 | C94: Utilities | D94: 0 | E94: 0 | F94: 0 | H94: 0 | K94: 0 | M94: 0
B95: 9090 | C95: Bad Debt Expense | D95: 0 | E95: 0 | F95: 0 | H95: 0 | K95: 0 | M95: 0
B96: 9100 | C96: Seminars & Training | D96: 0 | E96: 0 | F96: 0 | H96: =+D96+E96+F96 -> 0 | K96: 0 | L96: =IF(H96=0,"",ROUND(K96/$H96,4)) ->  | M96: 0 | N96: =IF(H96=0,"",ROUND(M96/$H96,4)) -> 
B97: 9290 | C97: Lobbying | D97: 0 | E97: 0 | F97: 0 | H97: 0 | K97: 0 | M97: 0
B98: 9300 | C98: Taxes | D98: 0 | E98: 0 | F98: 0 | H98: 0 | K98: 0 | M98: 0
B99: 9320 | C99: Taxes- State & Local | D99: 0 | E99: 0 | F99: 0 | H99: 0 | K99: 0 | M99: 0
B100: 9390 | C100: Taxes- Federal Income Tax | D100: 0 | E100: 0 | F100: 0 | H100: 0 | K100: 0 | M100: 0
B101: 9300 | C101: Subtotal Taxes | D101: =SUBTOTAL(9,D98:D100) -> 0 | E101: =SUBTOTAL(9,E98:E100) -> 0 | F101: =SUBTOTAL(9,F98:F100) -> 0 | H101: =SUBTOTAL(9,H98:H100) -> 0 | I101: =SUBTOTAL(9,I98:I100) ->  | K101: =SUBTOTAL(9,K98:K100) -> 0 | M101: =SUBTOTAL(9,M98:M100) -> 0
B102: 9400 | C102: Miscellaneous Other | D102: 0 | E102: 0 | F102: 0 | H102: 0 | I102: =ROUND(H102/$H$9,4) ->  | K102: 0 | M102: 0
B103: 9590 | C103: Organization/Reorganization | D103: 0 | E103: 0 | F103: 0 | H103: 0 | K103: 0 | M103: 0
B104: 9600 | C104: Credit for Internal Allocations | D104: 0 | E104: 0 | F104: 0 | H104: 0 | K104: 0 | M104: 0
B105: zzzz
B106: TOTAL GENERAL OVERHEAD | D106: =SUBTOTAL(9,D32:D105) -> 0 | E106: =SUBTOTAL(9,E32:E105) -> 0 | F106: =SUBTOTAL(9,F32:F105) -> 0 | H106: =SUBTOTAL(9,H32:H105) -> 0 | I106: =SUBTOTAL(9,I32:I105) ->  | K106: =SUBTOTAL(9,K32:K105) -> 0 | M106: =SUBTOTAL(9,M32:M105) -> 0
B108: TOTAL INDIRECT COSTS & OVERHEAD RATE | D108: =SUBTOTAL(9,D12:D107) -> 0 | E108: =SUBTOTAL(9,E12:E107) -> 0 | F108: =SUBTOTAL(9,F12:F107) -> 0 | H108: =SUBTOTAL(9,H12:H107) -> 0 | I108: =SUBTOTAL(9,I12:I107) ->  | K108: =SUBTOTAL(9,K12:K107) -> 0 | L108: =ROUND(K108/K9,4) ->  | M108: =SUBTOTAL(9,M12:M107) -> 0 | N108: =ROUND(M108/M9,4) -> 
B110: 9999 | C110: Facilities Capital Cost of Money (FCCM) (Optional) | H110: =+D110+E110+F110 -> 0 | I110: =+H110/$H$9 -> 
B112: OVERHEAD RATES (as percentages of direct labor cost)………………………………………………………………….. | I112: =+I108 ->  | L112: =+L108 ->  | N112: =+N108 -> 
I113: Company Wide | L113: Home Office | N113: Field Office
B119: FAR References and Notes:

Sheet Indirect (AASHTO example)
I7: ALLOCATIONS
B9: Acct Number | C9: Description | D9: General Ledger Account Balance | E9: Direct Costs | F9: Disallowed Costs | H9: Proposed Company Wide | I9: Proposed Home Office | J9: Proposed Field Office | L9: Percent to Field Office
B10: DIRECT LABOR | D10: 1950501 | E10: 1950501 | F10: 0 | H10: =+D10+F10 -> 1950501 | I10: 1826853 | J10: 123648 | K10: (n) | L10: =+J10/H10 -> 0.06339294366
B12: INDIRECT COSTS:
B13: FRINGE BENEFITS
B14: 6300 | C14: Benefits: Bonuses | D14: 234060 | F14: -28560 | G14: (a) | H14: =+D14+E14+F14 -> 205500 | I14: 193000 | J14: 12500 | K14: (n)
B15: 6310 | C15: Benefits: 401(k) | D15: 97525 | F15: 0 | H15: =+D15+E15+F15 -> 97525 | I15: 91255 | J15: 6270 | K15: (n)
B16: 6320 | C16: Benefits: PTO (vac., sick, holiday) | D16: 253565 | F16: 0 | H16: 253565 | I16: 241421 | J16: 12144 | K16: (n)
B17: 6820 | C17: Insurance: Disability | D17: 58515 | H17: 58515 | I17: 54806 | J17: 3709 | L17: =+J17/H17 -> 0.06338545672
B18: 6830 | C18: Insurance: Life | D18: 21846 | F18: -800 | G18: (b) | H18: 21046 | I18: 19711 | J18: 1334 | L18: =+J18/H18 -> 0.06338496626
B19: 6840 | C19: Insurance: Medical | D19: 136535 | H19: 136535 | I19: 127880 | J19: 8655 | L19: 0.06339033947
B20: 6850 | C20: Insurance: Workers' Comp | D20: 15799 | H20: 15799 | I20: 14798 | J20: 1002 | L20: 0.06342173555
B21: 7500 | C21: Payroll Taxes: FICA and Med | D21: 180421 | H21: 180421 | I21: 168984 | J21: 11437 | L21: 0.06339062526
B22: 7510 | C22: Payroll Taxes: FUTA and SUTA | D22: 78020 | H22: 78020 | I22: 73074 | J22: 4946 | L22: 0.06339400154
B24: TOTAL FRINGE BENEFITS | D24: =SUM(D14:D22) -> 1076286 | E24: =SUM(E14:E22) -> 0 | F24: =SUM(F14:F22) -> -29360 | H24: =SUM(H14:H22) -> 1046926 | I24: =SUM(I14:I22) -> 984929 | J24: =SUM(J14:J22) -> 61997
B26: GENERAL OVERHEAD
B27: 6700 | C27: Indirect Labor (G&A and support allocation) | D27: 741190 | F27: -3300 | G27: (c) | H27: =+D27+E27+F27 -> 737890 | I27: 680506 | J27: 38736 | K27: (o) | L27: 0.0525
B28: 6700 | C28: Indirect Labor (field labor allocation) | G28: (d) | H28: =+D28+E28+F28 -> 0 | J28: 18648 | K28: (n)
B29: 5010 | C29: Direct: Lodging, Meals, and Travel | D29: 122101 | E29: -122101 | G29: (d) | H29: 0 | L29: 0.0525
B30: 5020 | C30: Direct: Employee Mileage Reimbursements | D30: 159941 | E30: -159941 | G30: (d) | H30: 0 | L30: 0.0525
B31: 5030 | C31: Direct: Rentals and Supplies | D31: 21651 | E31: -21651 | G31: (d) | H31: 0 | L31: 0.0525
B32: 5040 | C32: Direct: Subconsultants | D32: 44862 | E32: -44862 | G32: (d) | H32: 0 | L32: 0.0525
B33: 6000 | C33: Advertising and Marketing | D33: 23991 | F33: -6750 | G33: (e) | H33: 17241 | I33: 16336 | J33: 905 | L33: =+J33/H33 -> 0.05249115481
B34: 6100 | C34: Automobile Expense | D34: 68268 | F34: -13580 | G34: (f) | H34: 54688 | I34: 51817 | J34: 2871 | L34: 0.05249780573
B35: 6200 | C35: Bank Service Charge | D35: 9753 | H35: 9753 | I35: 9241 | J35: 512 | L35: 0.05249666769
B36: 6400 | C36: Contributions and Gifts | D36: 14629 | F36: -14629 | G36: (g) | H36: 0 | L36: 0.0525
B37: 6500 | C37: Depreciation Expense | D37: 117030 | H37: 117030 | I37: 117030 | K37: (p)
B38: 6600 | C38: Dues and Subscriptions | D38: 16189 | F38: -350 | G38: (h) | H38: 15839 | I38: 15008 | J38: 831 | L38: =+J38/H38 -> 0.05246543342
B39: 6800 | C39: Insurance: Automotive | D39: 15409 | H39: 15409 | I39: 14600 | J39: 809 | L39: 0.05250178467
B40: 6810 | C40: Insurance: Business Liability | D40: 23406 | H40: 23406 | I40: 22177 | J40: 1229 | L40: 0.05250790396
B41: 6900 | C41: Interest Expense | D41: 36084 | F41: -36084 | G41: (i) | H41: 0 | L41: 0.0525
B42: 7000 | C42: Licenses and Permits | D42: 21456 | H42: 21456 | I42: 20329 | J42: 1126 | L42: =+J42/H42 -> 0.05247949292
B43: 7100 | C43: Maintenance and Repairs | D43: 97135 | H43: 97135 | I43: 92036 | J43: 5099 | L43: 0.05249395172
B44: 7200 | C44: Meals & Entertainment | D44: 19310 | F44: -1050 | G44: (j) | H44: 18260 | I44: 17301 | J44: 959 | L44: 0.05251916758
B45: 7300 | C45: Misc. Fees, Fines, Penalties | D45: 6827 | F45: -6827 | G45: (k) | H45: 0 | L45: 0.0525
B46: 7400 | C46: Office Expense: Cleaning | D46: 8192 | H46: 8192 | I46: 8192 | K46: (p)
B47: 7410 | C47: Office Expense: Postage and Delivery | D47: 4486 | H47: 4486 | I47: 4486 | K47: (p)
B48: 7420 | C48: Office Expense: Office Supplies | D48: 32183 | H48: 32183 | I48: 32183 | K48: (p)
B49: 7430 | C49: Office Expense: Other Office Expense | D49: 35889 | H49: 35889 | I49: 35889 | K49: (p)
B50: 7600 | C50: Personal Property Tax | D50: 42911 | H50: 42911 | I50: 42911 | K50: (p)
B51: 7700 | C51: Prof Fees: Accounting and Legal | D51: 30428 | H51: 30428 | I51: 28830 | J51: 1597 | L51: =+J51/H51 -> 0.0524845537
B52: 7800 | C52: Rent | D52: 180049 | F52: -2400 | G52: (l) | H52: 177649 | I52: 177649 | K52: (p)
B53: 7900 | C53: Telephone | D53: 60466 | H53: 60466 | I53: 57291 | J53: 3174 | L53: 0.05249230973
B54: 8000 | C54: Utilities | D54: 29472 | H54: 29472 | I54: 29472 | K54: (p)
C55: Credit for Internal Allocations | F55: -107278 | G55: (m) | H55: -107278 | I55: -107278 | K55: (p)
B56: TOTAL GENERAL OVERHEAD | D56: =SUM(D27:D55) -> 1983308 | E56: =SUM(E27:E55) -> -348555 | F56: =SUM(F27:F55) -> -192248 | H56: =SUM(H27:H55) -> 1442505 | I56: =SUM(I27:I55) -> 1366006 | J56: =SUM(J27:J55) -> 76496
B58: TOTAL INDIRECT COSTS & OVERHEAD RATE | D58: =+D56+D24 -> 3059594 | E58: =+E56+E24 -> -348555 | F58: =+F56+F24 -> -221608 | H58: =+H56+H24 -> 2489431 | I58: =+I56+I24 -> 2350935 | J58: =+J56+J24 -> 138493
B60: OVERHEAD RATES (as percentages of direct labor cost)………………………………………………………………….. | H60: =+H58/H10 -> 1.27630337 | I60: =+I58/I10 -> 1.286876941 | J60: =+J58/J10 -> 1.120058553
H61: Company Wide | I61: Home Office | J61: Field Office
B63: FAR References and Notes:
B64: (a) 31.205-6(a)(6)(ii)(B): Owners' compensation in excess of reasonable amount is disallowed (distribution of profits).
B65: (b) 31.205-19(e)(2)(v): Officers' life insurance is disallowed.
B66: (c) 31.201-6(e)(2)(v): Marketing, lobbying, and any labor associated with unallowable activities is disallowed.
B67: (d) 31.202: Excluded direct project costs (both billable & nonbillable costs) from indirect cost pool.
B68: (e) 31.205-1: Costs for general marketing materials are disallowed.
B69: (f) 31.205-6(m)(2) & 31.205-46(d): Personal use of a company asset (automobile) is disallowed.
B70: (g) 31.205-8 & 31.205-13(b): Contributions and gifts are disallowed.
B71: (h) 31.205-22 Lobbying costs, paid as a percentage of professional dues, are disallowed.
B72: (i) 31.205-20 Interest is disallowed.
B73: (j) 31.205-14 & 31.205-51: Costs for entertainment and alcoholic beverages are disallowed. (The entertainment cost principle supersedes all others.)
B74: (k) 31.205-4, 31.205-15, & 31.205-20: Disallowed late fees; Government-imposed fines and penalties; and credit card interest.
B75: (l) 31.205-36(b)(3): Related-party rent (not an arm's-length transaction) is limited to actual cost of ownership, net of interest and other unallowable items.
B76: (m) 31.202: Direct costs segregated and removed from indirect cost pool.
B77: (n) Field employee labor and fringe specifically identified.
B78: (o) Indirect general and administrative and support labor less identified field portion is allocated.
B79: (p) Accounts specifically identified as home office only.
